[Event "2nd China Preliminary Asian Games 2022"]
[Site "HangZhou"]
[Date "2022.04.14"]
[Round "1.1"]
[White "Ding, Liren"]
[Black "Ma, Qun"]
[Result "1/2-1/2"]
[ECO "C67"]
[WhiteElo "2799"]
[BlackElo "2645"]
[Annotator "TA"]
[PlyCount "62"]
[EventDate "2022.04.13"]
[EventType "tourn"]
[EventCountry "CHN"]
[SourceTitle "playchess.com"]
[Source "ChessBase"]
[SourceQuality "1"]
[TimeControl "40/5400+30:1800+30"]

{[%evp 18,62,22,21,16,17,18,14,22,15,16,4,9,7,8,7,15,0,0,0,0,0,0,0,16,7,11,0,0,0,0,0,0,0,0,0,0,0,0,0,0,0,0,0,0,0,0]} 1. e4 {[%emt 0:00:06]} e5 {[%emt 0:00:30]} 2. Nf3 {[%emt 0:00:17]} Nc6 {[%emt 0:00:08]} 3. Bb5 {[%emt 0:00:07]} Nf6 {[%emt 0:00:22]} 4. O-O {[%emt 0:00:06][%cal Bh1f1,Bf1e1,Be1e5][%mdl 32]} Nxe4 {[%emt 0:00:30]} 5. Re1 {[%emt 0:00:04]} Nd6 {[%emt 0:00:14]} 6. Nxe5 {[%emt 0:00:06]} Be7 {[%emt 0:00:11]} 7. Bf1 {[%emt 0:00:05]} Nxe5 {[%emt 0:00:26]} 8. Rxe5 {[%emt 0:00:05]} O-O {[%emt 0:00:10]} 9. d4 {[%emt 0:00:14]} Bf6 {[%emt 0:01:05]} 10. Re1 {[%emt 0:00:07] The position is equal.} Re8 {[%emt 0:00:16] C67: Ruy Lopez: Berlin Defence: 4 0-0 Nxe4.} 11. c3 {[%emt 0:00:44]} Rxe1 {[%emt 0:00:23]} 12. Qxe1 {[%emt 0:00:04]} Ne8 {[%emt 0:00:38][%cal Bd6e8,Be8g7,Bg7f5][%mdl 32]} 13. Bf4 {[%emt 0:00:07]} d5 {[%emt 0:00:14]} 14. Bd3 {[%emt 0:00:06]} g6 {[%emt 0:00:43]} 15. Nd2 {[%emt 0:00:05]} Ng7 {[%emt 0:00:27]} 16. Nf3 {[%emt 0:00:08] 16.Nf3 scores better than 16.Qe2.} c6 {[%emt 0:00:53]} 17. Qe2 {[%emt 0:00:14]} Bf5 {[%emt 0:00:11]} 18. Bxf5 {[%emt 0:00:06]} Nxf5 {[%emt 0:00:12]} 19. Re1 {[%emt 0:00:12]} Ng7 {[%emt 0:00:36]} 20. Be5 {[%emt 0:00:17]} Ne6 {[%emt 0:00:23]} 21. Bxf6 {[%emt 0:00:10]} Qxf6 {[%emt 0:00:08]} 22. Ne5 {[%emt 0:00:10]} Re8 {[%emt 0:00:19]} 23. Ng4 {[%emt 0:00:07]} Qd8 {[%emt 0:00:12]} 24. Qe5 {[%emt 0:00:14] Hoping for Nf6+.} Ng7 {[%emt 0:00:20]} 25. Qxe8+ {[%emt 0:00:08]} ({Don't blunder} 25. Nh6+ $2 Kf8 26. Nxf7 Rxe5 $19) 25... Nxe8 {[%emt 0:00:07]} 26. Rxe8+ {[%emt 0:00:03][%mdl 64] [#] Remove Defender} Qxe8 {[%emt 0:00:08][%cal Re8e1]} 27. Nf6+ {[%emt 0:00:02]} Kf8 {[%emt 0:00:08][%cal Re8e1]} 28. Nxe8 {[%emt 0:00:03]} Kxe8 {[%emt 0:00:04]} 29. f4 {[%emt 0:00:06]} f5 {[%emt 0:00:09]} 30. Kf2 {[%emt 0:00:05] [#]} a5 $5 $146 {[%emt 0:00:02][%mdl 8] An interesting novelty.} ({Predecessor:} 30... Ke7) 31. a4 {[%emt 0:00:26]} Ke7 {[%emt 0:00:12] A balanced but interesting game.  Weighted Error Value: White=0.03 (flawless) /Black=0.01 (flawless)} 1/2-1/2

[Event "2nd China Preliminary Asian Games 2022"]
[Site "HangZhou"]
[Date "2022.04.14"]
[Round "1.2"]
[White "Xu, Xiangyu"]
[Black "Bu, Xiangzhi"]
[Result "1/2-1/2"]
[ECO "D38"]
[WhiteElo "2564"]
[BlackElo "2700"]
[Annotator "TA"]
[PlyCount "60"]
[EventDate "2022.04.13"]
[EventType "tourn"]
[EventCountry "CHN"]
[SourceTitle "playchess.com"]
[Source "ChessBase"]
[SourceQuality "1"]
[TimeControl "40/5400+30:1800+30"]

{[%evp 9,60,27,24,8,9,0,2,0,0,11,17,0,0,0,0,0,0,0,0,0,0,0,16,12,19,12,22,0,26,22,27,6,4,4,2,4,2,4,4,0,9,0,0,0,0,0,0,0,0,0,0,0,0]} 1. d4 {[%emt 0:00:04]} Nf6 {[%emt 0:00:08]} 2. c4 {[%emt 0:00:08]} e6 {[%emt 0:00:03]} 3. Nf3 {[%emt 0:00:22]} d5 {[%emt 0:00:20]} 4. Nc3 {[%emt 0:00:14]} Bb4 {[%emt 0:00:33]} 5. Qa4+ {[%emt 0:00:09]} Nc6 {[%emt 0:00:08]} 6. Bd2 {[%emt 0:00:06] D38: Queen's Gambit Declined: Ragozin Defence (4 Nf3 Bb4).} O-O {[%emt 0:04:35]} 7. a3 $1 {[%emt 0:00:07][%mdl 4] is now more promising than 7.e3.} Bxc3 {[%emt 0:03:13]} 8. Bxc3 {[%emt 0:00:06]} Ne4 {[%emt 0:11:20][%cal Oe6e5]} 9. e3 {[%emt 0:00:17] [#]} e5 $146 {[%emt 0:11:05]} ({Predecessor:} 9... Re8 10. Rd1 Qd6 11. Qc2 b6 12. Bd3 Nxc3 13. Bxh7+ Kf8 14. Qxc3 g6 15. h4 Kg7 16. h5 Kxh7 17. hxg6+ Kxg6 {½-½ (41) Bazeev,G (2401)-Usmanov,V (2436) St Petersburg 2020}) 10. dxe5 {[%emt 0:17:29]} (10. Nxe5 {is interesting.} Nxe5 11. dxe5 Qh4 12. Qc2) 10... Nxc3 {[%emt 0:20:25]} 11. bxc3 {[%emt 0:00:07]} dxc4 {[%emt 0:01:08]} 12. Qxc4 {[%emt 0:01:20]} Qe7 {[%emt 0:00:06]} 13. Be2 {[%emt 0:27:52][%cal Bf1e2,Be2f3,Bf3b7][%mdl 32]} Nxe5 {[%emt 0:00:46]} 14. Nxe5 {[%emt 0:00:08]} Qxe5 {[%emt 0:00:02]} 15. O-O {[%emt 0:00:12]} c5 {[%emt 0:02:53]} 16. Bf3 {[%emt 0:07:31]} Be6 {[%emt 0:02:48]} 17. Qa4 {[%emt 0:01:43]} Qxc3 {[%emt 0:18:10]} 18. Bxb7 {[%emt 0:03:47]} (18. Rac1 $5 {[%cal Rc1c3]} Qe5 19. Bxb7 $11) 18... Bb3 {[%emt 0:09:44]} (18... Rab8 $5 {[%cal Rb8b7]} 19. Qxa7 Qe5 $11) 19. Qb5 {[%emt 0:09:48]} Rab8 {[%emt 0:00:21][%cal Ob3d5] And now ...Bd5! would win.} 20. Rfc1 {[%emt 0:00:59]} (20. Rac1 $5 {[%cal Rc1c3]} Bc2 21. Qa6 $11) 20... Bc2 $1 {[%emt 0:00:40] [#] The position is equal.} 21. Qe2 $1 {[%emt 0:06:08][%cal Ob7e4] Black must now prevent Be4!} Rxb7 {[%emt 0:02:18]} 22. Qxc2 {[%emt 0:00:08]} Qxc2 {[%emt 0:00:05]} 23. Rxc2 $11 {[%emt 0:00:03][%mdl 4096] Endgame KRR-KRR} Rc8 {[%emt 0:00:25]} 24. g4 {[%emt 0:01:36]} Kf8 {[%emt 0:00:21]} 25. Rac1 {[%emt 0:01:48]} Rb3 {[%emt 0:02:41]} 26. Rxc5 {[%emt 0:00:06]} Rxc5 {[%emt 0:00:02]} 27. Rxc5 {[%emt 0:00:06] [#] Rc8+ is the strong threat.} Rxa3 {[%emt 0:00:02]} 28. Rc7 {[%emt 0:00:06]} g5 {[%emt 0:01:27]} 29. Kg2 {[%emt 0:00:11]} Kg7 {[%emt 0:00:07]} 30. Kg3 {[%emt 0:00:30]} a5 {[%emt 0:00:46] An even fight not without its subleties.  Weighted Error Value: White=0.05 (flawless) /Black=0.03 (flawless)} 1/2-1/2

[Event "2nd China Preliminary Asian Games 2022"]
[Site "HangZhou"]
[Date "2022.04.14"]
[Round "1.3"]
[White "Wei, Yi"]
[Black "Zhang, Zhong"]
[Result "1/2-1/2"]
[ECO "A29"]
[WhiteElo "2729"]
[BlackElo "2640"]
[Annotator "TA"]
[PlyCount "138"]
[EventDate "2022.04.13"]
[EventType "tourn"]
[EventCountry "CHN"]
[SourceTitle "playchess.com"]
[Source "ChessBase"]
[SourceQuality "1"]
[TimeControl "40/5400+30:1800+30"]

{[%evp 20,138,14,1,9,0,18,25,21,-16,8,0,2,12,12,10,9,0,0,0,0,-7,0,0,0,0,0,0,0,0,0,0,0,-42,0,-8,-12,-69,0,-32,0,-170,-56,-57,-57,-57,-54,-55,0,-56,-14,-36,-27,-29,-13,-14,-26,-193,-182,-131,0,0,3,8,47,55,59,62,62,0,0,0,0,-20,0,0,0,0,0,0,0,0,0,0,0,0,0,0,0,0,0,0,0,0,0,0,0,0,0,0,0,0,0,0,0,0,0,0,0,0,0,0,5,0,0,0,-28000,-28000,-28000,-28000,-28000]} 1. c4 {[%emt 0:00:12] Stohl,I} e5 {[%emt 0:01:25]} 2. Nc3 {[%emt 0:01:17]} Nf6 {[%emt 0:00:12]} 3. Nf3 {[%emt 0:00:13]} Nc6 {[%emt 0:00:06]} 4. g3 {[%emt 0:00:13]} d5 {[%emt 0:00:13]} 5. cxd5 {[%emt 0:00:10]} Nxd5 {[%emt 0:00:07]} 6. Bg2 {[%emt 0:00:15]} Nb6 {[%emt 0:00:10]} 7. O-O {[%emt 0:02:47]} Be7 {[%emt 0:01:42]} 8. a3 {[%emt 0:00:42]} a5 {[%emt 0:00:33]} 9. d3 {[%emt 0:03:06]} O-O {[%emt 0:01:40]} 10. Be3 {[%emt 0:00:14]} Be6 {[%emt 0:03:23]} 11. Rc1 {[%emt 0:00:13]} a4 {[%emt 0:01:39] A29: English Opening: Four Knights Variation with 4 g3.} 12. Nd2 {[%emt 0:05:52]} f5 {[%emt 0:05:00]} 13. Bxb6 {[%emt 0:08:55]} cxb6 {[%emt 0:00:06] [#] White has an edge.} 14. Nc4 $146 {[%emt 0:00:42]} ({Predecessor:} 14. Nxa4 Bg5 15. Nc3 e4 16. Kh1 Qd7 17. Rb1 Rad8 18. Nc4 Qf7 19. b3 exd3 20. exd3 {0-1 (43) Giri,A (2777)-Carlsen,M (2843) Shamkir 2018 CBM 184 [Stohl,I]}) 14... e4 {[%emt 0:06:03]} (14... Bf6 {is more complex.} 15. e3 e4 16. Nb5 Qxd3 17. Qxd3 exd3 18. Nc7 Bxc4 19. Nxa8 Bb3) 15. Nb5 $1 {[%emt 0:00:10]} Bxc4 {[%emt 0:05:49]} 16. dxc4 {[%emt 0:02:39]} Qxd1 {[%emt 0:03:21]} 17. Rfxd1 {[%emt 0:00:14]} Bf6 {[%emt 0:01:39]} 18. g4 {[%emt 0:21:59]} g6 {[%emt 0:22:09]} 19. gxf5 {[%emt 0:09:34]} gxf5 {[%emt 0:00:05]} 20. f3 {[%emt 0:00:48]} Bg5 {[%emt 0:07:47]} 21. Rc3 {[%emt 0:04:24]} Bf6 {[%emt 0:01:51]} 22. Rc2 {[%emt 0:02:18]} Rad8 {[%emt 0:06:58]} 23. Rxd8 {[%emt 0:00:37]} Rxd8 {[%emt 0:03:04][%cal Bf8d8,Bd8d1,Bd1g1][%mdl 32]} 24. fxe4 {[%emt 0:00:08]} Bd4+ {[%emt 0:12:14]} 25. Kf1 {[%emt 0:01:20]} Be3 {[%emt 0:00:07][%cal Rd8d1]} 26. Bh3 {[%emt 0:08:05]} Rd1+ {[%emt 0:01:53][%mdl 1024] Black has compensation.} (26... fxe4 27. Kg2 $11) (26... f4 $5 {[%cal Rd8d1]} 27. Bf5 Kg7 $11) 27. Kg2 {[%emt 0:00:06]} f4 {[%emt 0:00:11] ( -> ...Rg1+)} 28. Bf5 {[%emt 0:02:44]} (28. Bc8 $11) 28... Kf7 {[%emt 0:08:13]} (28... h5 $15) 29. Kh3 {[%emt 0:00:24]} Kf6 {[%emt 0:01:42]} 30. Nc3 $2 {[%emt 0:01:49] [#]} (30. Bxh7 $11 Rd8 31. Kg2) 30... Rg1 {[%emt 0:01:25]} (30... Re1 $1 $19 {aiming for ...Nd4.} 31. Nb5 (31. Nxa4 $2 Nd4 $19) (31. Bxh7 $2 Kg7 $19) 31... h5) 31. Nd5+ $15 {[%emt 0:04:59]} (31. Bxh7 $2 Kg7 32. b4 (32. Bf5 $2 Nd4 $19) 32... axb3 $19) (31. Nxa4 Nd4 32. Rc3 Kg5 33. Rxe3 (33. Bxh7 $2 f3 $19) 33... fxe3 $19) 31... Kg5 $1 {[%emt 0:00:31]} 32. Bxh7 {[%emt 0:01:38][%cal Oe4e5]} (32. Nxe3 $2 fxe3 33. Rc3 (33. Bxh7 $2 Nd4 $19) 33... Kf4 $19) 32... Nd4 {[%emt 0:04:03]} 33. e5 $1 {[%emt 0:00:12]} Rg4 {[%emt 0:01:03]} (33... Re1 $15 34. e6 (34. Nxe3 $2 fxe3 35. Kg2 Nxc2 $19) 34... Nxe6) 34. Nf6 {[%emt 0:01:14]} ({White should play} 34. Bd3 $11) 34... Rh4+ {[%emt 0:00:21]} 35. Kg2 {[%emt 0:00:05]} f3+ {[%emt 0:00:36]} 36. exf3 {[%emt 0:00:28]} Nxc2 {[%emt 0:00:09]} 37. Bxc2 {[%emt 0:00:12]} Rxc4 $11 {[%emt 0:00:16][%mdl 4096] Endgame KRB-KBN} 38. Be4 {[%emt 0:16:52] [#]} (38. Bd3 $1 $11 Rd4 39. h4+ Rxh4 40. Nd5) 38... Bd4 $1 $19 {[%emt 0:00:58][%csl LRb2,LRe5]} 39. Nd7 {[%emt 0:00:11]} Rc7 {[%emt 0:00:43]} (39... Bxb2 $17 {...b5 is the strong threat.} 40. Nxb6 Rc1 41. h4+ Kxh4) 40. e6 $11 {[%emt 0:00:00][%cal Of3f4]} Bc5 {[%emt 0:00:00]} 41. h4+ {[%emt 0:10:11]} (41. Nxc5 Rxc5 42. e7 (42. Bxb7 $2 Kf6 $19) 42... Re5 $17) 41... Kxh4 {[%emt 0:08:30]} 42. f4 {[%emt 0:00:10][%cal Bf3f4,Bf4f5][%mdl 32]} Kg4 {[%emt 0:00:21]} 43. f5 {[%emt 0:00:46]} Be7 {[%emt 0:00:17]} 44. Nxb6 {[%emt 0:05:08] &Bianco is more active.} (44. f6 $14 Rxd7 45. exd7 Bxf6 46. Bd3 (46. Bxb7 b5 $11)) 44... Kf4 {[%emt 0:00:33]} 45. Bd3 {[%emt 0:01:01] Black must now prevent Nd5+.} Rc5 {[%emt 0:03:06] Inhibits Nd5+.} 46. Kf2 {[%emt 0:00:12]} ({Of course not} 46. Nxa4 Rd5 47. Bc4 (47. Bb1 $2 Rd2+ 48. Kh3 Bd6 $19) 47... Rd2+ 48. Kf1 Kxf5 $19) 46... Rxf5 {[%emt 0:01:30]} 47. Bxf5 {[%emt 0:00:05]} Kxf5 {[%emt 0:00:03] KB-KN} 48. Ke3 {[%emt 0:00:19]} Kxe6 {[%emt 0:00:34]} ({Don't play} 48... Bc5+ 49. Kd3 Kxe6 50. Nxa4 $16) 49. Kd3 {[%emt 0:00:11]} Bf6 {[%emt 0:01:59]} 50. Nxa4 {[%emt 0:00:23]} Kd5 {[%emt 0:00:08]} 51. Nc3+ {[%emt 0:00:12]} Kc6 {[%emt 0:00:07]} 52. a4 {[%emt 0:00:40]} Be5 {[%emt 0:06:15]} 53. Kc4 {[%emt 0:00:14]} Bg3 {[%emt 0:00:23]} 54. Nb5 {[%emt 0:02:07]} Be1 {[%emt 0:00:21]} 55. b4 {[%emt 0:01:01]} Kb6 {[%emt 0:00:34]} 56. Nd4 {[%emt 0:00:52]} Ka6 {[%emt 0:00:18]} 57. Nc2 {[%emt 0:02:05]} Bf2 {[%emt 0:00:49]} 58. Na3 {[%emt 0:00:15]} Be1 {[%emt 0:00:44]} 59. Nb5 {[%emt 0:03:06]} Bf2 {[%emt 0:00:16]} 60. Nd6 {[%emt 0:01:09]} Be1 {[%emt 0:01:43]} 61. Kb3 {[%emt 0:04:10]} Bg3 {[%emt 0:00:45]} 62. Ne4 {[%emt 0:00:17]} Be1 {[%emt 0:00:19]} 63. Nc5+ {[%emt 0:00:27]} Kb6 {[%emt 0:00:20]} 64. Kc4 {[%emt 0:00:05]} Bd2 {[%emt 0:00:51]} 65. Nb3 {[%emt 0:00:42]} Be1 {[%emt 0:00:11]} 66. a5+ {[%emt 0:00:17]} Ka7 {[%emt 0:02:40]} 67. Kb5 $2 {[%emt 0:00:18][%mdl 8192]} (67. b5 $11) 67... Bxb4 {[%emt 0:00:29]} 68. Kxb4 {[%emt 0:00:04]} b6 {[%emt 0:00:03]} 69. axb6+ {[%emt 0:00:03]} Kxb6 {[%emt 0:00:01][%mdl 32768] Weighted Error Value: White=0.27 (precise) /Black=0.13 (very precise) . An unexpected result.} 1/2-1/2

[Event "2nd China Preliminary Asian Games 2022"]
[Site "HangZhou"]
[Date "2022.04.15"]
[Round "2.1"]
[White "Ma, Qun"]
[Black "Zhang, Zhong"]
[Result "1-0"]
[ECO "D28"]
[WhiteElo "2645"]
[BlackElo "2640"]
[Annotator "TA"]
[PlyCount "83"]
[EventDate "2022.04.13"]
[EventType "tourn"]
[EventCountry "CHN"]
[SourceTitle "playchess.com"]
[Source "ChessBase"]
[SourceQuality "1"]
[TimeControl "40/5400+30:1800+30"]

{[%evp 17,83,39,49,33,38,36,52,41,45,62,48,62,43,27,28,41,30,43,29,26,27,12,27,29,27,37,34,39,53,62,91,88,158,159,158,166,160,147,178,175,179,183,282,242,335,243,409,264,321,313,286,288,302,308,318,260,334,346,350,349,346,345,338,266,524,520,29994,29995]} 1. d4 {[%emt 0:00:13]} d5 {[%emt 0:00:58]} 2. c4 {[%emt 0:00:51]} dxc4 {[%emt 0:00:06]} 3. e3 {[%emt 0:00:25]} Nf6 {[%emt 0:00:21]} 4. Bxc4 {[%emt 0:00:11]} e6 {[%emt 0:00:10]} 5. Nf3 {[%emt 0:00:18]} c5 {[%emt 0:00:19]} 6. O-O {[%emt 0:00:13]} Nc6 {[%emt 0:00:10]} 7. Nc3 {[%emt 0:00:39]} a6 {[%emt 0:00:07]} 8. Qe2 {[%emt 0:00:14]} Be7 {[%emt 0:06:03]} 9. Rd1 {[%emt 0:00:36]} Qc7 {[%emt 0:00:10]} 10. dxc5 {[%emt 0:13:10] D28: Queen's Gambit Accepted: Classical main line: 7 Qe2 with early ...Nc6.} Bxc5 {[%emt 0:01:11]} 11. b3 {[%emt 0:00:30]} O-O {[%emt 0:13:08]} 12. Bb2 {[%emt 0:00:21] White is slightly better.} Rd8 {[%emt 0:00:33]} 13. Rxd8+ {[%emt 0:07:28]} Qxd8 {[%emt 0:00:30]} 14. Rd1 {[%emt 0:00:16] [#]} Qc7 $146 {[%emt 0:14:15]} ({Predecessor:} 14... Qe7 15. Ng5 b5 16. Bd3 Bb7 17. Nce4 Nxe4 18. Nxe4 Rd8 19. Qh5 f5 20. Nxc5 Qxc5 {½-½ (47) Rybak,J (1935)-Obukhov,G (1981) LSS email 2014}) 15. Ng5 {[%emt 0:08:15]} Be7 {[%emt 0:04:12]} 16. Nce4 {[%emt 0:04:03]} Nxe4 {[%emt 0:00:20]} 17. Nxe4 {[%emt 0:00:31]} b5 {[%emt 0:03:46]} 18. Bd3 {[%emt 0:04:38]} Bb7 {[%emt 0:14:50]} 19. Qh5 $40 {[%emt 0:17:30][%mdl 128] Black needs to defend precisely.} f5 {[%emt 0:38:51]} 20. Ng5 {[%emt 0:01:04]} Bxg5 {[%emt 0:00:00]} 21. Qxg5 {[%emt 0:00:04]} Rd8 {[%emt 0:00:00]} 22. h4 {[%emt 0:04:14][%cal Bh2h4,Bh4h5][%mdl 32]} Qe7 {[%emt 0:00:00]} 23. Qg3 {[%emt 0:01:53]} e5 {[%emt 0:00:00] Black is on the road to losing.} 24. Bc2 {[%emt 0:05:52] Hoping for Rxd8+. A strong pair of Bishops.} Rf8 {[%emt 0:00:00]} (24... Rxd1+ $142 25. Bxd1 Bc8) 25. b4 $1 $16 {[%emt 0:07:23]} Bc8 {[%emt 0:00:00]} 26. a3 {[%emt 0:02:01]} Rf6 {[%emt 0:00:00]} 27. h5 {[%emt 0:03:08] &Bianco is more active.} Bd7 {[%emt 0:00:00]} 28. Rd5 {[%emt 0:10:59]} Rd6 {[%emt 0:01:13]} 29. Rc5 {[%emt 0:00:55]} Rh6 {[%emt 0:00:06]} (29... Kf8 $142 30. Bc3 (30. Bxe5 Nxe5 31. Rxe5 Qf6 $18) 30... g6 31. hxg6 (31. Bxe5 Nxe5 32. Rxe5 Qf6 $16) 31... Rxg6) 30. Bb3+ {[%emt 0:01:12][%cal Bc2b3,Bb3d5,Bd5e4,Be4d3][%mdl 32]} Kh8 {[%emt 0:00:05]} 31. Bd5 {[%emt 0:03:15]} f4 $2 {[%emt 0:00:03]} (31... Qe8 32. Bf3 Qf8 33. Bxc6 Rxc6 34. Rxc6 (34. Bxe5 Kg8 $18) (34. Rxe5 Rd6 $18) 34... Bxc6 35. Qxe5 (35. Bxe5 Qf7 $18) 35... h6) 32. Qf3 {[%emt 0:00:42]} Qe8 {[%emt 0:00:14]} 33. exf4 {[%emt 0:01:12]} Nd4 {[%emt 0:00:14]} 34. Bxd4 {[%emt 0:00:40]} ({Resist} 34. Qd1 $6 Qxh5 35. Qxh5 Rxh5 $18) 34... exd4 {[%emt 0:00:01]} 35. Be4 {[%emt 0:00:39]} Rd6 {[%emt 0:01:34]} 36. Re5 {[%emt 0:00:35]} Qc8 {[%emt 0:00:21]} 37. Bd3 {[%emt 0:00:13]} Bc6 {[%emt 0:00:40]} 38. Qe2 {[%emt 0:00:17]} Rf6 {[%emt 0:00:52]} 39. g3 {[%emt 0:00:55]} h6 {[%emt 0:00:38]} (39... Qh3 $2 40. Re8+ $1 {[%mdl 512]} Bxe8 41. Qxe8+) 40. Re7 {[%emt 0:00:00]} Rf8 $2 {[%emt 0:00:00]} (40... Qh3 $2 {[#] is a self mate.} 41. Re8+ $1 {[%mdl 512]} Bxe8 42. Qxe8+) (40... Kg8 {was called for.} 41. a4 Kf8) 41. Qe5 $1 $18 {[%emt 0:04:29][%csl Ge7,LRd4,LRg7][%cal Re5g7]} Rg8 {[%emt 0:02:26] [#]} (41... Rf6 $18 42. Be4 Kg8 43. Bh7+ Kh8) 42. Qf6 $3 {[%emt 0:01:53][%mdl 512] Weighted Error Value: White=0.17 (very precise) /Black=0.47} 1-0

[Event "2nd China Preliminary Asian Games 2022"]
[Site "HangZhou"]
[Date "2022.04.15"]
[Round "2.2"]
[White "Bu, Xiangzhi"]
[Black "Wei, Yi"]
[Result "1/2-1/2"]
[ECO "D38"]
[WhiteElo "2700"]
[BlackElo "2729"]
[Annotator "TA"]
[PlyCount "60"]
[EventDate "2022.04.13"]
[EventType "tourn"]
[EventCountry "CHN"]
[SourceTitle "playchess.com"]
[Source "ChessBase"]
[SourceQuality "1"]
[TimeControl "40/5400+30:1800+30"]

{[%evp 20,60,10,10,25,0,0,0,0,0,0,0,0,0,0,0,0,0,0,0,0,0,0,0,0,0,0,0,0,0,0,0,0,0,0,0,0,0,0,0,0,0,0]} 1. Nf3 {[%emt 0:00:09]} Nf6 {[%emt 0:00:17]} 2. c4 {[%emt 0:00:08]} e6 {[%emt 0:00:13]} 3. Nc3 {[%emt 0:00:25]} d5 {[%emt 0:00:09]} 4. d4 {[%emt 0:00:04]} Bb4 {[%emt 0:00:19]} 5. Bg5 {[%emt 0:02:34]} h6 {[%emt 0:00:15]} 6. Bxf6 {[%emt 0:00:04]} Qxf6 {[%emt 0:00:05]} 7. e3 {[%emt 0:00:38]} O-O {[%emt 0:00:13]} 8. Rc1 {[%emt 0:00:12]} dxc4 {[%emt 0:00:15]} 9. Bxc4 {[%emt 0:00:08]} c5 {[%emt 0:00:03]} 10. O-O {[%emt 0:00:49]} cxd4 {[%emt 0:00:13]} 11. Nxd4 {[%emt 0:01:53]} (11. Ne4 Qe7 12. a3 Ba5 13. Qxd4 Rd8 14. Qc5 Qxc5 15. Nxc5 Nd7 16. Nb3 Bb6 17. a4 Nf6 18. Be2 Ne8 19. a5 Bc7 20. Rc2 Kf8 21. Rfc1 Bd6 22. Nc5 b6 23. axb6 axb6 {½-½ (31) Bu,X (2718)-Wei,Y (2734) Hangzhou 2018}) 11... Bd7 {[%emt 0:00:18] D38: Queen's Gambit Declined: Ragozin Defence (4 Nf3 Bb4).} 12. Qb3 {[%emt 0:00:08]} (12. Ne4 $5 {[%cal Re4f6]} Qe7 13. Qh5 $14 (13. a3 Ba5 $11)) 12... Nc6 {[%emt 0:00:07] The position is equal.} 13. Nxc6 {[%emt 0:00:04]} Bxc3 {[%emt 0:00:06]} 14. Qxb7 {[%emt 0:00:12]} Bxc6 {[%emt 0:00:10]} 15. Qxc6 {[%emt 0:00:04]} Bxb2 {[%emt 0:01:23] [#] White must now prevent ...Rac8.} 16. Rc2 {[%emt 0:00:35]} Ba3 {[%emt 0:01:47] [#]} 17. Bb3 $146 {[%emt 0:00:31]} ({Predecessor:} 17. Be2 Rfd8 18. Qa4 Qe7 19. Rb1 Rab8 20. Rxb8 Rxb8 21. g3 g6 22. Qf4 Qb4 23. Qxb4 Bxb4 24. Rc7 a5 25. Kg2 Kg7 26. a4 h5 27. Bb5 Rd8 {½-½ (27) Sazon,A (2240)-Toca,A (2105) ICCF email 2016}) 17... Qe7 {[%emt 0:00:16]} 18. Rd1 {[%emt 0:00:10]} Rad8 {[%emt 0:00:04][%cal Rd8d1]} 19. Rcd2 {[%emt 0:00:06]} Rxd2 {[%emt 0:00:05]} 20. Rxd2 {[%emt 0:00:02]} Rd8 {[%emt 0:00:08]} 21. Rxd8+ {[%emt 0:00:03]} Qxd8 {[%emt 0:00:05]} 22. g3 {[%emt 0:00:03]} g6 {[%emt 0:00:17]} 23. Kg2 {[%emt 0:00:12]} Bf8 {[%emt 0:00:23]} 24. h4 {[%emt 0:00:15]} h5 {[%emt 0:00:04]} 25. Bc4 {[%emt 0:00:48]} a5 {[%emt 0:00:09]} 26. Bb3 {[%emt 0:00:07]} Bg7 {[%emt 0:00:06]} 27. Bc4 {[%emt 0:00:10]} Bf6 {[%emt 0:00:06]} 28. Bb3 {[%emt 0:00:05]} Bg7 {[%emt 0:00:06]} 29. Bc4 {[%emt 0:00:02]} Bf6 {[%emt 0:00:04]} 30. Bb3 {[%emt 0:00:03]} Bg7 {[%emt 0:00:05] A balanced but interesting game.  Weighted Error Value: White=0.01 (flawless) /Black=0.00 (flawless)} 1/2-1/2